Cogmind - Beta 14 @@@ ROGUE MODE // 2024.09.25 @ 12:13:54 Player: Minty Result: Destroyed by GT-D9X(R) with Subdweller Machine Gun Performance ------------- Evolutions (0) 0 Regions Visited (3) 600 Robots Destroyed (44) 220 Value Destroyed (903) 903 Prototype IDs (13) 260 Alien Tech Used (0) 0 Bonus (0) 0 TOTAL SCORE: 1983 Bonus ------- None Cogmind --------- Core Integrity 0/250 Matter 172/300 Energy 100/100 System Corruption 1% Temperature Cool (0) Movement Rolling (95) Ox1 Location -10/Subcaves Parts ------- > --- POWER (1) -------- (None) > --- PROPULSION (2) --- Wheel Wheel > --- UTILITY (2) ------ Heat Sink Large Storage Unit > --- WEAPON (2) ------- Rocket Launcher > --- INVENTORY (15) --- Ion Engine Light Treads Wheel Large Storage Unit Large Matter Pod (150) Signal Interpreter Seismic Detector Utility Shielding Utility Shielding Utility Shielding Powered Cannon Grenade Launcher Peak State ------------ > --- POWER ------------ Makeshift Power Source > --- PROPULSION ------- Light Treads Light Treads > --- UTILITY ---------- Heat Sink Large Storage Unit > --- WEAPON ----------- Grenade Launcher Rocket Launcher > --- INVENTORY -------- Ion Engine Wheel Wheel Wheel Large Storage Unit Large Matter Pod Signal Interpreter Seismic Detector Utility Shielding Utility Shielding Utility Shielding Powered Cannon Grenade Launcher [Rating: 13] Favorites ----------- Power Ion Engine Engine Ion Engine Propulsion Light Treads Treads Light Treads Leg Aluminum Leg Wheel Wheel Utility Heat Sink Device Heat Sink Storage Large Storage Unit Weapon EM Pulse Gun Energy Gun EM Pulse Gun Energy Cannon Beam Cannon Launcher Grenade Launcher Build | -11 -10 -10 -10 ------- Run | Yrd Mat Min Sub Slots Evolved . | . . . . Power . | . . . . Propulsion . | . . . . Utility . | . . . . Weapon . | . . . . Parts Attached 25 | . 6 6 13 Power 2 | . 1 . 1 Engine 2 | . 1 . 1 Core . | . . . . Reactor . | . . . . Propulsion 7 | . 3 2 2 Treads 2 | . . 2 . Leg . | . . . . Wheel 5 | . 3 . 2 Hover . | . . . . Flight . | . . . . Utility 2 | . 2 . . Device 1 | . 1 . . Storage 1 | . 1 . . Processor . | . . . . Hackware . | . . . . Protection . | . . . . Artifact . | . . . . Weapon 14 | . . 4 10 Energy Gun 5 | . . 2 3 Energy Cannon 3 | . . . 3 Ballistic Gun . | . . . . Ballistic Cannon . | . . . . Launcher 6 | . . 2 4 Special Weapon . | . . . . Impact Weapon . | . . . . Slashing Weapon . | . . . . Piercing Weapon . | . . . . Special Melee Weapon . | . . . . Unidentified Prototypes . | . . . . Corrupted Parts 1 | . 1 . . System Corruption 1 | . 1 . . Parts Lost 4 | . . . 4 Power 1 | . . . 1 Propulsion 1 | . . . 1 Utility . | . . . . Weapon 2 | . . . 2 Highest Loss Streak 3 | . . . 3 To Critical Strikes . | . . . . Average Slot Usage (%) 97 | . 91 100 99 Engine 13 | . 14 14 13 Treads 16 | . . 7 27 Leg 1 | . 5 . . Wheel 10 | . 23 21 . Device 12 | . 5 14 14 Storage 14 | . 14 14 14 Energy Gun 17 | . 28 27 7 Energy Cannon 4 | . . . 8 Launcher 6 | . . . 11 Peak Build Rating 13 | . 8 9 13 Average Rating 8 | . 6 8 9 On Entrance 7 | 6 6 8 8 Naked Turns . | . . . . Heaviest Build 32 | 12 30 30 32 Greatest Support 40 | 20 20 40 40 Greatest Overweight (x) 1 | . 1 1 1 Average Overweight (x) . | . . . . Largest Inventory Capacity 15 | . 15 15 15 Average Capacity 13 | . 10 15 15 Most Carried 15 | . 15 15 15 Average Carried 13 | . 8 14 14 Final Capacity 15 | 8 15 15 15 Final Carried 15 | 6 15 15 13 Class Distribution -------------------- 100% | Mutant Dominant Class ---------------- Mutant | -10/Materials Mutant | -10/Mines Mutant | -10/Subcaves Resources | -11 -10 -10 -10 ----------- Run | Yrd Mat Min Sub Matter Collected 808 | 192 203 55 358 Remotely . | . . . . Salvage Created 1124 | . 496 294 334 Parts 95 | . 30 38 27 Haulers Intercepted 2 | . 2 . . Recyclers Shooed . | . . . . Parts Field Recycled . | . . . . Retrieved Matter . | . . . . Parts Self-Destructed 8 | . . . 8 Prevented 1 | . . . 1 Kills | -11 -10 -10 -10 ------- Run | Yrd Mat Min Sub Combat Hostiles Destroyed 30 | . 5 11 14 Guns 10 | . 3 4 3 Cannons 1 | . . . 1 AOE 19 | . 2 7 10 Classes Destroyed 10 | . 6 3 1 Worker 5 | . 2 3 . Builder 3 | . . 3 . Tunneler 1 | . . 1 . Hauler 2 | . 2 . . Recycler 1 | . 1 . . Operator 1 | . 1 . . Watcher 1 | . 1 . . Swarmer 12 | . . 9 3 Grunt 7 | . 5 2 . Subdweller 11 | . . . 11 Best Kill Streak 5 | . 2 5 4 Combat Bots Only 5 | . 2 5 4 Max Kills in Single Turn 3 | . 2 3 2 Gunslinging . | . . . . Exploded 3 | . 2 3 1 Melee . | . . . . Uniques/NPCs Destroyed . | . . . . Combat | -11 -10 -10 -10 -------- Run | Yrd Mat Min Sub Hostile Shots Fired 94 | . 18 25 51 Missed 32 | . 9 7 16 Damage Taken 1141 | . 115 207 819 Core 268 | . 51 35 182 Absorbed by Shields . | . . . . Core Remaining (%) 100 | 100 . . . Volleys Fired 98 | . 33 25 40 Largest 2 | . 2 2 2 Hottest 90 | . 90 90 90 Shots Fired 170 | . 65 44 61 Gun 115 | . 65 40 10 Cannon 22 | . . . 22 Launcher 33 | . . 4 29 Special . | . . . . Kinetic . | . . . . Thermal 80 | . 32 21 27 Explosive 33 | . . 4 29 Electromagnetic 57 | . 33 19 5 Robot Hit Streak 11 | . 4 7 11 Robot Miss Streak 7 | . 3 7 4 Penetration Max . | . . . . Secondary Targets 1 | . . 1 . Max Gunslinging Chain 1 | . . 1 . Shots Hit Robots 95 | . 38 23 34 Core Hits 66 | . 20 20 26 Critical Kills . | . . . . Critical Parts Destroyed . | . . . . Critical Strikes 2 | . 1 1 . Burn 2 | . 1 1 . Melee Attacks . | . . . . Impact . | . . . . Slashing . | . . . . Piercing . | . . . . Sneak Attacks . | . . . . Combat Hostiles . | . . . . Follow-up Attacks . | . . . . Damage Inflicted 2925 | . 678 771 1476 Guns 861 | . 549 245 67 Cannons 175 | . . . 175 Explosions 1886 | . 126 526 1234 Melee . | . . . . Ramming 3 | . 3 . . Kinetic . | . . . . Thermal 853 | . 382 271 200 Explosive 1590 | . . 356 1234 Electromagnetic 479 | . 293 144 42 Impact . | . . . . Slashing . | . . . . Piercing . | . . . . Highest Corruption 1 | . 1 1 1 Average Corruption 1 | . 1 1 1 Corruption Purged . | . . . . Corruption Blocked . | . . . . Effects 15 | . . 6 9 Message Errors 3 | . . 1 2 Matter Fused 3 | . . . 3 Heat Flow Errors 3 | . . 2 1 Energy Discharges 4 | . . 3 1 Data Loss (major) 1 | . . . 1 Alerts 1 | . . . 1 Overload Shots . | . . . . Overflow Damage 44 | . . 22 22 Projectiles . | . . . . Explosions 44 | . . 22 22 Melee . | . . . . Knockbacks . | . . . . Impact . | . . . . Kinetic . | . . . . Secondary . | . . . . Self-Inflicted Damage 136 | . . 40 96 Shots 5 | . . 1 4 Rammed 2 | . 1 1 . Targets Rammed 3 | . 2 1 . Kicked 1 | . 1 . . Crushed . | . . . . Highest Temperature 240 | . 240 118 75 Average Temperature 70 | . 73 50 51 Received Heat Transfer 177 | . 63 48 66 Effects 1 | . 1 . . Interference 1 | . 1 . . Siege Activations . | . . . . Robots Corrupted . | . . . . Combat Hostiles . | . . . . Parts Fried . | . . . . Impact Corruptions . | . . . . Robots Melted . | . . . . Combat Hostiles . | . . . . Parts Melted 2 | . 1 1 . Heat Transferred 1928 | . 914 570 444 Parts Sabotaged . | . . . . Parts Stolen . | . . . . Parts Stripped . | . . . . Power Chain Reactions 4 | . 2 2 . Alert | -11 -10 -10 -10 ------- Run | Yrd Mat Min Sub Peak Influence 382 | . 99 382 . Initial 31 | . . 31 . Average 110 | . 49 165 . Maximum Alert Level 1 | . . 1 . Low Security (%) 82 | . 100 66 . Level 1 17 | . . 33 . Level 2 . | . . . . Level 3 . | . . . . Level 4 . | . . . . Level 5 . | . . . . High Security . | . . . . Max Security . | . . . . Squads Dispatched 2 | . 2 . . Investigation 1 | . 1 . . Extermination . | . . . . Reinforcement 1 | . 1 . . Assault . | . . . . Garrison . | . . . . Intercept . | . . . . Searches Triggered . | . . . . Construction Impeded . | . . . . Haulers Reinforced . | . . . . Active Scanning Responses . | . . . . Cargo Convoy Interrupts . | . . . . Stealth | -11 -10 -10 -10 --------- Run | Yrd Mat Min Sub Distress Signals 1 | . 1 . . Communications Jammed . | . . . . Distress Signals . | . . . . Times Spotted 35 | . 9 11 15 Peak Tracking Total 3 | . 2 3 3 Tactical Retreats 2 | . 1 1 . Traps | -11 -10 -10 -10 ------- Run | Yrd Mat Min Sub Traps Triggered . | . . . . Indirectly . | . . . . Trap Hack Attempts . | . . . . Triggered . | . . . . Disarmed . | . . . . Reprogrammed . | . . . . Reused . | . . . . Traps Extracted . | . . . . Installed . | . . . . Triggered . | . . . . Machines | -11 -10 -10 -10 ---------- Run | Yrd Mat Min Sub Machines Disabled 4 | . . 1 3 Max in Single Turn 3 | . . 1 3 Machines Repaired . | . . . . Machines Dismantled . | . . . . Machines Sabotaged . | . . . . Overloaded Fab Kills . | . . . . Hacking | -11 -10 -10 -10 --------- Run | Yrd Mat Min Sub Machines Accessed 7 | . 5 . 2 Terminals 5 | . 5 . . Fabricators . | . . . . Repair Stations . | . . . . Recycling Units . | . . . . Scanalyzers . | . . . . Garrison Access . | . . . . Total Hacks 25 | . 21 . 4 Successful 18 | . 14 . 4 Failed 7 | . 7 . . Catastrophic 1 | . 1 . . Database Lockouts . | . . . . Manual 9 | . 9 . . Terminals 21 | . 21 . . Fabricators . | . . . . Repair Stations . | . . . . Recycling Units . | . . . . Scanalyzers . | . . . . Garrison Access . | . . . . Terminal Hacks 14 | . 10 . 4 Record 3 | . . . 3 Robot Analysis 2 | . 2 . . Prototype ID Bank 1 | . 1 . . Branch Access Points 1 | . 1 . . Terminal Index 1 | . 1 . . Alert Level 1 | . 1 . . Unreport Threat 1 | . 1 . . Locate Traps 2 | . 2 . . Hauler Manifests 1 | . 1 . . Derelict Proto ID Bank 1 | . . . 1 Fabricator Hacks . | . . . . Repair Station Hacks . | . . . . Recycling Unit Hacks . | . . . . Scanalyzer . | . . . . Garrison Access Hacks . | . . . . Unauthorized Hacks 4 | . 4 . . Terminals 4 | . 4 . . Track 2 | . 2 . . Assimilate 1 | . 1 . . Botnet 1 | . 1 . . Fabricators . | . . . . Repair Stations . | . . . . Recycling Units . | . . . . Scanalyzers . | . . . . Garrison Access . | . . . . Data Cores Recovered . | . . . . Used . | . . . . Hacking Detections 5 | . 5 . . Full Trace Events 2 | . 2 . . Feedback Events . | . . . . Feedback Blocked . | . . . . Robot Schematics Acquired . | . . . . Robots Built . | . . . . Authchips . | . . . . Time . | . . . . Total Robot Build Rating . | . . . . Part Schematics Acquired . | . . . . Parts Built . | . . . . Authchips . | . . . . Time . | . . . . Total Part Build Rating . | . . . . Parts Repaired . | . . . . Time . | . . . . Parts Recycled . | . . . . Recycled Matter . | . . . . Retrieved Matter . | . . . . Retrieved Components . | . . . . Parts Scanalyzed . | . . . . Part Schematics Acquired . | . . . . Parts Damaged . | . . . . Bothacking | -11 -10 -10 -10 ------------ Run | Yrd Mat Min Sub Used RIF Installer . | . . . . Robots Hacked . | . . . . Non-combat . | . . . . Combat . | . . . . Robot Hacks Applied . | . . . . Relay Couplers Released . | . . . . Fabnet Peak Effective % . | . . . . Robots Rewired . | . . . . Allies Hacked . | . . . . Hacks Repelled . | . . . . Allies | -11 -10 -10 -10 -------- Run | Yrd Mat Min Sub Total Allies 1 | . 1 . . Largest Group 1 | . 1 . . Highest-Rated Group 10 | . 10 . . Highest-Rated Ally 10 | . 10 . . Total Orders . | . . . . Ally Attacks . | . . . . Total Damage . | . . . . Kills . | . . . . Allies Corrupted . | . . . . Allies Melted . | . . . . Intel | -11 -10 -10 -10 ------- Run | Yrd Mat Min Sub Robot Analysis Total 2 | . 2 . . Derelict Logs Recovered 3 | . . 2 1 Drone Launches . | . . . . Drone Recoveries . | . . . . Exploration | -11 -10 -10 -10 ------------- Run | Yrd Mat Min Sub Turns Passed 2478 | . 560 628 1290 Spaces Moved 1640 | 1 395 513 731 Core . | . . . . Treads 815 | . . 91 724 Legs 64 | 1 63 . . Wheels 761 | . 332 422 7 Hover . | . . . . Flight . | . . . . Fastest Speed 80 | 120 80 95 95 Average Speed 126 | 120 92 106 159 Slowest Speed 240 | 120 120 160 240 Overloaded Moves . | . . . . Propulsion Burnouts . | . . . . Robots Hopped . | . . . . Cave-ins Triggered . | . . . . Exploration Rate (%) 48 | 2 39 95 56 Regions Visited 3 Branch Regions 2 Pre-discovered Areas 3 | . . 1 2 Known Exits Taken 1 | . 1 . . Unknown Exits Taken 2 | 1 . 1 . Scrap Searched 3 | . . 1 2 Spaces Dug . | . . . . Terrain Destroyed 239 | . 8 60 171 Melee . | . . . . Projectile . | . . . . AOE 239 | . 8 60 171 Terrain Rammed . | . . . . Walls Destroyed . | . . . . Machines Disabled . | . . . . Actions | -11 -10 -10 -10 --------- Run | Yrd Mat Min Sub Total 1866 | . 526 548 792 Wait 70 | . 66 . 4 Move 1637 | . 394 512 731 Hop . | . . . . Pick Up 19 | . 16 2 1 Fast Attach 1 | . 1 . . Attach 6 | . 2 . 4 Detach . | . . . . Swap 18 | . 3 6 9 Drop 14 | . 9 2 3 Fire 98 | . 33 25 40 Melee . | . . . . Ram 1 | . 1 . . Kick 1 | . 1 . . Crush 1 | . . 1 . Escape Stasis . | . . . . Rewire . | . . . . Trap . | . . . . Miscellaneous . | . . . . Route ------- -11/Scrapyard -10/Materials -10/Mines (discovered 3 exits: [*Mat x2] / *Sub) -10/Subcaves History --------- Turn | Location | Event 1 | -11/Scrapyard | Discovered new exit (range 0) 1 | -11/Scrapyard | Entered Materials 313 | -10/Materials | Build established: Mutant 403 | -10/Materials | Identified exit to Mines 561 | -10/Materials | Entered Mines 568 | -10/Mines | Learned Materials emergency access door positions 596 | -10/Mines | Discovered new exit (range 6) 597 | -10/Mines | Learned location of Storage (-8) 635 | -10/Mines | Discovered new exit (range 16) 851 | -10/Mines | Learned Materials garrison access intel 964 | -10/Mines | Received a Rocket Launcher from a helpful Derelict 1163 | -10/Mines | Discovered new exit (range 14) 1189 | -10/Mines | Entered Subcaves 1526 | -10/Subcaves | Visited 4L-MR0's lab 1558 | -10/Subcaves | Found Powered Cannon 1961 | -10/Subcaves | A swath of the cavern ceiling suddenly collapsed 1988 | -10/Subcaves | Disturbed a concealed Subdweller 2081 | -10/Subcaves | Visited Clippyterm 2086 | -10/Subcaves | Learned location of Extension (-4) 2116 | -10/Subcaves | Learned location of Zion (-6) 2137 | -10/Subcaves | Core integrity fell below 50% 2451 | -10/Subcaves | Core integrity fell below 20% 2479 | -10/Subcaves | Destroyed by GT-D9X(R) with Subdweller Machine Gun Last Messages --------------- 02415_ System corrupted: Energy discharge (-61). 02446_ Lgt. Treads destroyed. 02450_ Grenade Launcher destroyed. 02450_ Destroyed Grenade Launcher. 02453_ 4P-358(R) destroyed. 02455_ The unstable cave ceiling collapses. 02455_ FW-8FG(R) destroyed. 02461_ The unstable cave ceiling collapses. 02462_ Acquired 4 matter. 02463_ Acquired 26 matter. 02464_ The unstable cave ceiling collapses. 02465_ Mak. Power Source destroyed. 02467_ C7-N07(R) destroyed. 02468_ GT-D9X(R): "ARGHSUB!" 02470_ The unstable cave ceiling collapses. 02471_ Sub. Monowheel crushed. 02472_ The unstable cave ceiling collapses. 02476_ Disposable Heat Sink crushed. 02476_ The unstable cave ceiling collapses. 02478_ Scrap Shield Fragment crushed. Map ----- +----------------------------------------------------+ | ??????????????????????????????????????? ?????????? | | ???????????????????????????????????????? ????????? | | ????????????????????????????????????????? ???????? | | ?????????????????????????????????????????# ?????## | | ????????????????????????????????????????## ?????# | | ????????????????????????????????????????# ???## | | ????????????????????????????????????????# % ?## | | ????????????????????????????????????????# ## | | ???????????????????????????????????????? | | ??????????????????????????????????????????? | | ??????????????????????????????????????????????# | | ??????????????????????????????????????????##### | | ??????????????????????????????????????????# | | ???????????????????????????????????? ?????## % ## | | ??????????????????????????????????? ?????# ### | | ?????????????????????????????????? % ??????# ##?# | | ?????????????????????????????#### ??????## #?# | | ???????????????????????????? ???????# ##% | | ????????????????????####???? ?????????# ## | | ????????????????????# #### ??????????# #### | | ????????????????????## # #??????????## ##??? | | ????????????????????# #??????????## #???? | | ????????????????????# # #??????????# #???? | | ???????????????????## !###?###??????# #???? | | ?????????????????### # [ #?# ###????# #???? | | ?????????????????# @ ##?# ##???### #???? | | ???????????????# ### ##????# #???? | | ???????????????# #### #????# ##??? | | ??????????????# # ####?# #### | | ??????????????# R ### ## | | ?????????????# ! # # ### | | ?????????????# #### #?#### | | ?????????????# [ ????####????########## ### | | ?????????????## # ?????????????????????###?# | | ??????????????## ####?????????????????????????# | | ???????????????##???????????????????????????? | | ????????????????????????????????????????????## | | ?????????????????????????????????????????????# # | | ?????????????????????????????????????????????##### | | ?????????????????????????????????????????????????? | | ?????????????????????????????????????????????????? | | ?????????????????????????????????????????????????? | | ?????????????????????????????????????????????????? | | ?????????????????????????????????????????????????? | | ?????????????????????????????????????????????????? | | ?????????????????????????????????????????????????? | | ?????????????????????????????????????????????????? | | ?????????????????????????????????????????????????? | | ?????????????????????????????????????????????????? | | ?????????????????????????????????????????????????? | +----------------------------------------------------+ Best States ------------- Heat Dissipation 35 Energy Generation 15 Energy Capacity 250 Matter Stores 300 Matter Capacity 300 Sight Range 16 Terrain Scan Density 10 Evasion (%) 55 Recoil Reduction 2 Item Schematics ----------------- None Robot Schematics ------------------ None Fabricated ------------ Nothing Alien Tech Used ----------------- None Achievements -------------- None Challenges ------------ None Game ------ Seed MiningMeleeNanosword Manual? 0 Play Time 00:12:46 Cumulative 946.5 hours Start 2024.09.25 @ 12:01:55 End 2024.09.25 @ 12:13:54 Sessions 1 Manual Loads 0 Difficulty Rogue Special Mode None Game No. 1154 Rogue 874 Adventurer 124 Explorer 156 Win Type - Total 41 Types 28/0/8/3/1/0/0/1/0 Lore% 83 Gallery% 90 Achievement% 78 Wizard Run 0 Options --------- Layout 0 ASCII 0 Keyboard 1 Movement Numpad Keybinds 0 Fullscreen 2 Font 18/X11 Map View 76x50 Zoom Use 0% Tactical HUD 1 Map Filters NONE Filters NONE Steam 1 RUN: aefc5509-39fe-40f3-a7eb-9dac953afb49